[Event "Titled Tuesday Blitz February 14 Early 2023"]
[White "Tan, Jun Ying"]
[Black "Derjabin, Ilja"]
[WhiteFideId "5710413"]
[BlackFideId "14104768"]
[WhiteElo "2307"]
[BlackElo "2333"]
[Result "1-0"]
[Round "09"]
[TimeControl "180+2"]
[Date "2023.02.14"]
[WhiteClock "0:00:37"]
[BlackClock "0:00:03"]

1. d4 {[%clk 0:03:00]}  Nf6 {[%clk 0:02:46]} 2. c4 {[%clk 0:03:01]}  c5 {[%clk 0:02:46]} 3. d5 {[%clk 0:03:00]}  b5 {[%clk 0:02:46]} 4. cxb5 {[%clk 0:03:00]}  a6 {[%clk 0:02:46]} 5. bxa6 {[%clk 0:03:00]}  Bxa6 {[%clk 0:02:47]} 6. Nc3 {[%clk 0:03:00]}  d6 {[%clk 0:02:47]} 7. Nf3 {[%clk 0:03:00]}  g6 {[%clk 0:02:46]} 8. g3 {[%clk 0:03:00]}  Bg7 {[%clk 0:02:46]} 9. Bg2 {[%clk 0:03:00]}  O-O {[%clk 0:02:47]} 10. Rb1 {[%clk 0:03:00]}  Ne8 {[%clk 0:02:44]} 11. O-O {[%clk 0:02:56]}  Nc7 {[%clk 0:02:44]} 12. Qc2 {[%clk 0:02:42]}  Nb5 {[%clk 0:02:33]} 13. Nxb5 {[%clk 0:02:40]}  Bxb5 {[%clk 0:02:34]} 14. b3 {[%clk 0:02:40]}  Na6 {[%clk 0:02:33]} 15. a4 {[%clk 0:02:34]}  Nb4 {[%clk 0:02:31]} 16. Qd2 {[%clk 0:02:33]}  Bd7 {[%clk 0:02:18]} 17. Bb2 {[%clk 0:02:31]}  Bxb2 {[%clk 0:02:16]} 18. Rxb2 {[%clk 0:02:32]}  Qa5 {[%clk 0:02:06]} 19. Qh6 {[%clk 0:02:22]}  f6 {[%clk 0:01:54]} 20. Nd2 {[%clk 0:02:22]}  Na6 {[%clk 0:01:31]} 21. Nc4 {[%clk 0:02:13]}  Qb4 {[%clk 0:01:30]} 22. Rd1 {[%clk 0:01:51]}  Bxa4 {[%clk 0:01:20]} 23. bxa4 {[%clk 0:01:51]}  Qxc4 {[%clk 0:01:20]} 24. Bh3 {[%clk 0:01:42]}  Nb4 {[%clk 0:01:12]} 25. Be6+ {[%clk 0:01:39]}  Kh8 {[%clk 0:01:12]} 26. h4 {[%clk 0:01:25]}  Qc3 {[%clk 0:00:54]} 27. Rbd2 {[%clk 0:01:21]}  Qe5 {[%clk 0:00:52]} 28. Kg2 {[%clk 0:00:53]}  Qh5 {[%clk 0:00:43]} 29. Qe3 {[%clk 0:00:44]}  Rxa4 {[%clk 0:00:40]} 30. Bd7 {[%clk 0:00:44]}  Ra7 {[%clk 0:00:21]} 31. Qxe7 {[%clk 0:00:44]}  Qh6 {[%clk 0:00:18]} 32. Qxd6 {[%clk 0:00:45]}  Qg7 {[%clk 0:00:14]} 33. Be6 {[%clk 0:00:41]}  Na6 {[%clk 0:00:11]} 34. Qb6 {[%clk 0:00:39]}  Re7 {[%clk 0:00:03]} 35. Qxa6 {[%clk 0:00:37]} 1-0


[Site "https://www.chess.com"]

[Event "Titled Tuesday Blitz February 14 Early 2023"]
[White "Cella, Glaucio Dalla Cortt"]
[Black "Skliarov, Viktor"]
[WhiteFideId "2119455"]
[BlackFideId "14106736"]
[WhiteElo "1894"]
[BlackElo "2383"]
[Result "0-1"]
[Round "09"]
[TimeControl "180+2"]
[Date "2023.02.14"]
[WhiteClock "0:00:12"]
[BlackClock "0:00:10"]

1. e4 {[%clk 0:03:00]}  c5 {[%clk 0:02:59]} 2. Nf3 {[%clk 0:03:00]}  Nc6 {[%clk 0:02:59]} 3. c3 {[%clk 0:03:01]}  Nf6 {[%clk 0:02:59]} 4. e5 {[%clk 0:03:00]}  Nd5 {[%clk 0:02:59]} 5. d4 {[%clk 0:03:01]}  cxd4 {[%clk 0:02:59]} 6. cxd4 {[%clk 0:03:02]}  d6 {[%clk 0:02:59]} 7. Nc3 {[%clk 0:03:01]}  e6 {[%clk 0:02:59]} 8. Bd3 {[%clk 0:03:00]}  dxe5 {[%clk 0:02:58]} 9. dxe5 {[%clk 0:03:00]}  Ndb4 {[%clk 0:02:57]} 10. Bb1 {[%clk 0:03:00]}  Qxd1+ {[%clk 0:02:53]} 11. Nxd1 {[%clk 0:03:00]}  b6 {[%clk 0:02:37]} 12. a3 {[%clk 0:03:01]}  Nd5 {[%clk 0:02:37]} 13. O-O {[%clk 0:02:58]}  Ba6 {[%clk 0:02:34]} 14. Re1 {[%clk 0:02:58]}  h6 {[%clk 0:02:34]} 15. Ne3 {[%clk 0:02:56]}  Nf4 {[%clk 0:02:08]} 16. Be4 {[%clk 0:02:55]}  Rc8 {[%clk 0:02:07]} 17. b4 {[%clk 0:02:54]}  g5 {[%clk 0:01:07]} 18. Bb2 {[%clk 0:02:13]}  Nd3 {[%clk 0:01:04]} 19. Bxd3 {[%clk 0:02:03]}  Bxd3 {[%clk 0:01:04]} 20. Rac1 {[%clk 0:02:04]}  Bg7 {[%clk 0:00:41]} 21. Nd4 {[%clk 0:02:04]}  Ne7 {[%clk 0:00:41]} 22. Rxc8+ {[%clk 0:01:59]}  Nxc8 {[%clk 0:00:42]} 23. Rd1 {[%clk 0:01:59]}  Be4 {[%clk 0:00:33]} 24. f3 {[%clk 0:01:59]}  Ba8 {[%clk 0:00:27]} 25. Rc1 {[%clk 0:02:00]}  Kd7 {[%clk 0:00:25]} 26. Nc4 {[%clk 0:01:31]}  Bd5 {[%clk 0:00:21]} 27. Nb5 {[%clk 0:01:29]}  a6 {[%clk 0:00:16]} 28. Nbd6 {[%clk 0:01:28]}  Nxd6 {[%clk 0:00:13]} 29. Nxd6 {[%clk 0:01:27]}  Bf8 {[%clk 0:00:08]} 30. Nxf7 {[%clk 0:01:13]}  Rh7 {[%clk 0:00:08]} 31. Nd6 {[%clk 0:01:13]}  Bxd6 {[%clk 0:00:08]} 32. exd6 {[%clk 0:01:14]}  Kxd6 {[%clk 0:00:08]} 33. Bd4 {[%clk 0:01:10]}  b5 {[%clk 0:00:08]} 34. Kf2 {[%clk 0:01:06]}  h5 {[%clk 0:00:08]} 35. g3 {[%clk 0:01:02]}  Rf7 {[%clk 0:00:07]} 36. Rc3 {[%clk 0:00:59]}  e5 {[%clk 0:00:08]} 37. Be3 {[%clk 0:00:54]}  Rxf3+ {[%clk 0:00:06]} 38. Ke2 {[%clk 0:00:54]}  g4 {[%clk 0:00:05]} 39. Bc5+ {[%clk 0:00:52]}  Ke6 {[%clk 0:00:05]} 40. Rxf3 {[%clk 0:00:53]}  Bxf3+ {[%clk 0:00:04]} 41. Ke3 {[%clk 0:00:51]}  Kd5 {[%clk 0:00:05]} 42. h3 {[%clk 0:00:13]}  Be4 {[%clk 0:00:03]} 43. hxg4 {[%clk 0:00:13]}  hxg4 {[%clk 0:00:04]} 44. Bf8 {[%clk 0:00:13]}  Bf3 {[%clk 0:00:05]} 45. Bc5 {[%clk 0:00:12]}  Kc4 {[%clk 0:00:05]} 46. Bd6 {[%clk 0:00:11]}  e4 {[%clk 0:00:05]} 47. Bc5 {[%clk 0:00:11]}  Kb3 {[%clk 0:00:05]} 48. Bf8 {[%clk 0:00:10]}  Kxa3 {[%clk 0:00:06]} 49. Kd4 {[%clk 0:00:09]}  Ka4 {[%clk 0:00:04]} 50. Kc3 {[%clk 0:00:09]}  a5 {[%clk 0:00:04]} 51. bxa5 {[%clk 0:00:09]}  Kxa5 {[%clk 0:00:05]} 52. Bb4+ {[%clk 0:00:08]}  Ka4 {[%clk 0:00:05]} 53. Bc5 {[%clk 0:00:08]}  Bg2 {[%clk 0:00:04]} 54. Be3 {[%clk 0:00:08]}  Bf1 {[%clk 0:00:04]} 55. Kb2 {[%clk 0:00:08]}  Bd3 {[%clk 0:00:05]} 56. Bf4 {[%clk 0:00:08]}  b4 {[%clk 0:00:05]} 57. Bd2 {[%clk 0:00:09]}  Kb5 {[%clk 0:00:05]} 58. Be3 {[%clk 0:00:10]}  Kc4 {[%clk 0:00:06]} 59. Kc1 {[%clk 0:00:10]}  Be2 {[%clk 0:00:05]} 60. Kb2 {[%clk 0:00:10]}  Bf3 {[%clk 0:00:05]} 61. Bd2 {[%clk 0:00:10]}  Kd3 {[%clk 0:00:04]} 62. Bxb4 {[%clk 0:00:11]}  Ke2 {[%clk 0:00:05]} 63. Kc3 {[%clk 0:00:10]}  e3 {[%clk 0:00:04]} 64. Kd4 {[%clk 0:00:10]}  Kf2 {[%clk 0:00:04]} 65. Bd6 {[%clk 0:00:10]}  e2 {[%clk 0:00:04]} 66. Bb4 {[%clk 0:00:10]}  e1=Q {[%clk 0:00:05]} 67. Bxe1+ {[%clk 0:00:10]}  Kxe1 {[%clk 0:00:05]} 68. Ke3 {[%clk 0:00:10]}  Kf1 {[%clk 0:00:06]} 69. Kf4 {[%clk 0:00:10]}  Kg2 {[%clk 0:00:07]} 70. Ke3 {[%clk 0:00:11]}  Kxg3 {[%clk 0:00:08]} 71. Kd2 {[%clk 0:00:11]}  Kf2 {[%clk 0:00:08]} 72. Kd3 {[%clk 0:00:11]}  g3 {[%clk 0:00:09]} 73. Kd4 {[%clk 0:00:12]}  g2 {[%clk 0:00:10]} 0-1


[Site "https://www.chess.com"]

[Event "Titled Tuesday Blitz February 14 Early 2023"]
[White "AyMitecK"]
[Black "Cunha, Lucas Aguiar"]
[BlackFideId "2125404"]
[WhiteElo "2484"]
[BlackElo "2309"]
[Result "0-1"]
[Round "09"]
[TimeControl "180+2"]
[Date "2023.02.14"]
[WhiteClock "0:01:59"]
[BlackClock "0:01:22"]

1. e4 {[%clk 0:03:00]}  c5 {[%clk 0:02:56]} 2. Nf3 {[%clk 0:03:00]}  e6 {[%clk 0:02:55]} 3. Nc3 {[%clk 0:02:59]}  Nc6 {[%clk 0:02:55]} 4. Bb5 {[%clk 0:02:59]}  Nd4 {[%clk 0:02:54]} 5. O-O {[%clk 0:02:59]}  a6 {[%clk 0:02:52]} 6. Be2 {[%clk 0:02:58]}  Ne7 {[%clk 0:02:51]} 7. Re1 {[%clk 0:02:58]}  Nec6 {[%clk 0:02:50]} 8. Bf1 {[%clk 0:02:59]}  Be7 {[%clk 0:02:48]} 9. Nd5 {[%clk 0:02:57]}  exd5 {[%clk 0:02:43]} 10. exd5 {[%clk 0:02:58]}  Nxf3+ {[%clk 0:02:43]} 11. Qxf3 {[%clk 0:02:58]}  Nd4 {[%clk 0:02:43]} 12. Qd3 {[%clk 0:02:53]}  O-O {[%clk 0:02:42]} 13. c3 {[%clk 0:02:53]}  Nb5 {[%clk 0:02:42]} 14. Qe3 {[%clk 0:02:47]}  Bf6 {[%clk 0:02:29]} 15. Qxc5 {[%clk 0:02:45]}  d6 {[%clk 0:02:30]} 16. Qc4 {[%clk 0:02:42]}  Bf5 {[%clk 0:02:18]} 17. d3 {[%clk 0:02:38]}  Rc8 {[%clk 0:02:13]} 18. Qf4 {[%clk 0:02:38]}  Qd7 {[%clk 0:02:08]} 19. a4 {[%clk 0:02:35]}  Nc7 {[%clk 0:02:06]} 20. c4 {[%clk 0:02:35]}  a5 {[%clk 0:02:02]} 21. Be3 {[%clk 0:02:30]}  Bxb2 {[%clk 0:01:45]} 22. Rab1 {[%clk 0:02:29]}  Be5 {[%clk 0:01:46]} 23. Qh4 {[%clk 0:02:29]}  Na6 {[%clk 0:01:45]} 24. Bb6 {[%clk 0:02:17]}  Qxa4 {[%clk 0:01:35]} 25. Ra1 {[%clk 0:02:16]}  Bxa1 {[%clk 0:01:32]} 26. Rxa1 {[%clk 0:02:14]}  Qxa1 {[%clk 0:01:32]} 27. Bd4 {[%clk 0:02:15]}  Qc1 {[%clk 0:01:28]} 28. Be3 {[%clk 0:02:09]}  Qd1 {[%clk 0:01:24]} 29. Qd4 {[%clk 0:01:59]}  Nc5 {[%clk 0:01:22]} 0-1


[Site "https://www.chess.com"]

[Event "Titled Tuesday Blitz February 14 Early 2023"]
[White "Sadykov, Ramil"]
[Black "Fiorito, Francisco"]
[WhiteFideId "24113590"]
[BlackFideId "180165"]
[WhiteElo "2345"]
[BlackElo "2305"]
[Result "0-1"]
[Round "09"]
[TimeControl "180+2"]
[Date "2023.02.14"]
[WhiteClock "0:00:01"]
[BlackClock "0:00:12"]

1. d4 {[%clk 0:02:44]}  Nf6 {[%clk 0:03:00]} 2. Nc3 {[%clk 0:02:39]}  g6 {[%clk 0:02:54]} 3. e4 {[%clk 0:02:37]}  d6 {[%clk 0:02:54]} 4. Be3 {[%clk 0:02:30]}  c6 {[%clk 0:02:54]} 5. f3 {[%clk 0:02:22]}  b5 {[%clk 0:02:54]} 6. Qd2 {[%clk 0:02:18]}  Bg7 {[%clk 0:02:54]} 7. Bh6 {[%clk 0:02:14]}  Bxh6 {[%clk 0:02:50]} 8. Qxh6 {[%clk 0:02:15]}  Qa5 {[%clk 0:02:49]} 9. Bd3 {[%clk 0:02:05]}  b4 {[%clk 0:02:43]} 10. Nce2 {[%clk 0:02:02]}  Ba6 {[%clk 0:02:34]} 11. Qd2 {[%clk 0:01:51]}  Bxd3 {[%clk 0:02:34]} 12. Qxd3 {[%clk 0:01:51]}  Nbd7 {[%clk 0:02:33]} 13. Nh3 {[%clk 0:01:51]}  Rc8 {[%clk 0:02:23]} 14. O-O {[%clk 0:01:49]}  O-O {[%clk 0:02:23]} 15. a3 {[%clk 0:01:49]}  bxa3 {[%clk 0:02:20]} 16. Rxa3 {[%clk 0:01:47]}  Qb6 {[%clk 0:02:20]} 17. Qb3 {[%clk 0:01:32]}  Qc7 {[%clk 0:02:16]} 18. Rfa1 {[%clk 0:01:31]}  Rb8 {[%clk 0:02:11]} 19. Qa2 {[%clk 0:01:25]}  Qb6 {[%clk 0:02:02]} 20. Rb3 {[%clk 0:01:21]}  Qc7 {[%clk 0:01:56]} 21. Qxa7 {[%clk 0:01:14]}  Qxa7 {[%clk 0:01:55]} 22. Rxa7 {[%clk 0:01:12]}  Rxb3 {[%clk 0:01:56]} 23. cxb3 {[%clk 0:01:10]}  Rb8 {[%clk 0:01:56]} 24. Nc1 {[%clk 0:01:07]}  e5 {[%clk 0:01:44]} 25. dxe5 {[%clk 0:01:05]}  dxe5 {[%clk 0:01:45]} 26. Kf2 {[%clk 0:01:01]}  h6 {[%clk 0:01:40]} 27. Ke3 {[%clk 0:00:58]}  Nc5 {[%clk 0:01:40]} 28. Ra3 {[%clk 0:00:57]}  Ne8 {[%clk 0:01:36]} 29. Nf2 {[%clk 0:00:55]}  Ne6 {[%clk 0:01:24]} 30. Ng4 {[%clk 0:00:53]}  f6 {[%clk 0:01:07]} 31. Nxh6+ {[%clk 0:00:52]}  Kg7 {[%clk 0:01:08]} 32. Ng4 {[%clk 0:00:52]}  Rb7 {[%clk 0:01:06]} 33. g3 {[%clk 0:00:51]}  Nd6 {[%clk 0:01:06]} 34. Nf2 {[%clk 0:00:50]}  Nb5 {[%clk 0:01:06]} 35. Ra6 {[%clk 0:00:47]}  Nbd4 {[%clk 0:01:06]} 36. Nfd3 {[%clk 0:00:45]}  Kf7 {[%clk 0:00:58]} 37. f4 {[%clk 0:00:45]}  Nc7 {[%clk 0:00:38]} 38. Ra5 {[%clk 0:00:40]}  Nxb3 {[%clk 0:00:29]} 39. Nxb3 {[%clk 0:00:38]}  Rxb3 {[%clk 0:00:30]} 40. fxe5 {[%clk 0:00:38]}  fxe5 {[%clk 0:00:30]} 41. Rxe5 {[%clk 0:00:38]}  Na6 {[%clk 0:00:26]} 42. Kd4 {[%clk 0:00:24]}  Nc7 {[%clk 0:00:25]} 43. Ra5 {[%clk 0:00:20]}  Rb7 {[%clk 0:00:17]} 44. Kc4 {[%clk 0:00:17]}  Kf6 {[%clk 0:00:16]} 45. b4 {[%clk 0:00:15]}  Ne6 {[%clk 0:00:15]} 46. Ra6 {[%clk 0:00:10]}  Rc7 {[%clk 0:00:14]} 47. Nc5 {[%clk 0:00:07]}  Nd8 {[%clk 0:00:15]} 48. Nd3 {[%clk 0:00:07]}  Nf7 {[%clk 0:00:14]} 49. b5 {[%clk 0:00:07]}  Ke7 {[%clk 0:00:11]} 50. Rxc6 {[%clk 0:00:05]}  Ra7 {[%clk 0:00:12]} 51. Ra6 {[%clk 0:00:04]}  Rc7+ {[%clk 0:00:12]} 52. Kd4 {[%clk 0:00:04]}  Nd8 {[%clk 0:00:12]} 53. Nc5 {[%clk 0:00:02]}  Nf7 {[%clk 0:00:10]} 54. Kd5 {[%clk 0:00:01]}  Rc8 {[%clk 0:00:09]} 55. Ra7+ {[%clk 0:00:01]}  Kf8 {[%clk 0:00:10]} 56. b6 {[%clk 0:00:01]}  Rd8+ {[%clk 0:00:10]} 57. Rd7 {[%clk 0:00:01]}  Rb8 {[%clk 0:00:10]} 58. b7 {[%clk 0:00:01]}  Nd8 {[%clk 0:00:11]} 59. Rc7 {[%clk 0:00:01]}  Ke8 {[%clk 0:00:10]} 60. Rc8 {[%clk 0:00:01]}  Rxb7 {[%clk 0:00:11]} 61. Nxb7 {[%clk 0:00:01]}  Kd7 {[%clk 0:00:12]} 0-1


[Site "https://www.chess.com"]

[Event "Titled Tuesday Blitz February 14 Early 2023"]
[White "Manukian, Artak"]
[Black "Fries-Nielsen, Jens Ove"]
[WhiteFideId "13301373"]
[BlackFideId "1400142"]
[WhiteElo "2196"]
[BlackElo "2377"]
[Result "1-0"]
[Round "09"]
[TimeControl "180+2"]
[Date "2023.02.14"]
[WhiteClock "0:00:09"]
[BlackClock "0:01:32"]

1. e4 {[%clk 0:02:53]}  c5 {[%clk 0:02:59]} 2. Nf3 {[%clk 0:02:53]}  Nc6 {[%clk 0:03:00]} 3. c3 {[%clk 0:02:53]}  e6 {[%clk 0:02:59]} 4. d4 {[%clk 0:02:53]}  d5 {[%clk 0:03:00]} 5. e5 {[%clk 0:02:53]}  h6 {[%clk 0:02:56]} 6. a3 {[%clk 0:02:52]}  g5 {[%clk 0:02:55]} 7. b4 {[%clk 0:02:49]}  cxd4 {[%clk 0:02:54]} 8. cxd4 {[%clk 0:02:49]}  g4 {[%clk 0:02:53]} 9. Ng1 {[%clk 0:02:48]}  h5 {[%clk 0:02:51]} 10. Nc3 {[%clk 0:02:45]}  Nh6 {[%clk 0:02:51]} 11. Bb2 {[%clk 0:02:41]}  Nf5 {[%clk 0:02:50]} 12. Nge2 {[%clk 0:02:30]}  a6 {[%clk 0:02:47]} 13. Na4 {[%clk 0:02:24]}  h4 {[%clk 0:02:47]} 14. Nf4 {[%clk 0:02:19]}  Qg5 {[%clk 0:02:45]} 15. Qd2 {[%clk 0:02:17]}  Bh6 {[%clk 0:02:44]} 16. g3 {[%clk 0:02:13]}  Qg7 {[%clk 0:02:39]} 17. Be2 {[%clk 0:01:46]}  Bg5 {[%clk 0:02:31]} 18. O-O {[%clk 0:01:35]}  hxg3 {[%clk 0:02:26]} 19. fxg3 {[%clk 0:01:36]}  Qh6 {[%clk 0:02:25]} 20. Bxg4 {[%clk 0:01:31]}  Nxg3 {[%clk 0:02:25]} 21. Nc5 {[%clk 0:01:10]}  Nxf1 {[%clk 0:02:21]} 22. Rxf1 {[%clk 0:01:10]}  b6 {[%clk 0:02:19]} 23. Ncd3 {[%clk 0:01:05]}  Bd7 {[%clk 0:02:19]} 24. a4 {[%clk 0:01:01]}  Ne7 {[%clk 0:02:19]} 25. Qf2 {[%clk 0:00:41]}  Bxa4 {[%clk 0:02:08]} 26. Bh5 {[%clk 0:00:35]}  Rh7 {[%clk 0:02:01]} 27. Bc1 {[%clk 0:00:30]}  O-O-O {[%clk 0:01:58]} 28. h4 {[%clk 0:00:24]}  Bxf4 {[%clk 0:01:45]} 29. Nxf4 {[%clk 0:00:25]}  Nf5 {[%clk 0:01:42]} 30. Kh2 {[%clk 0:00:21]}  Bb5 {[%clk 0:01:39]} 31. Nxd5 {[%clk 0:00:16]}  Qxh5 {[%clk 0:01:36]} 32. Qc2+ {[%clk 0:00:11]}  Kd7 {[%clk 0:01:31]} 33. Qc7+ {[%clk 0:00:11]}  Ke8 {[%clk 0:01:31]} 34. Nf6+ {[%clk 0:00:10]}  Kf8 {[%clk 0:01:32]} 35. Qxd8+ {[%clk 0:00:09]} 1-0


[Site "https://www.chess.com"]

[Event "Titled Tuesday Blitz February 14 Early 2023"]
[White "Souleidis, Georgios"]
[Black "Heinemann, Josefine"]
[WhiteFideId "4206827"]
[BlackFideId "12900460"]
[WhiteElo "2419"]
[BlackElo "2289"]
[Result "1-0"]
[Round "09"]
[TimeControl "180+2"]
[Date "2023.02.14"]
[WhiteClock "0:00:14"]
[BlackClock "0:00:13"]

1. e4 {[%clk 0:02:58]}  e5 {[%clk 0:02:59]} 2. Nc3 {[%clk 0:02:58]}  Nf6 {[%clk 0:02:58]} 3. d4 {[%clk 0:02:58]}  exd4 {[%clk 0:02:57]} 4. Qxd4 {[%clk 0:02:59]}  Nc6 {[%clk 0:02:57]} 5. Qd3 {[%clk 0:02:59]}  d5 {[%clk 0:02:41]} 6. Bf4 {[%clk 0:02:59]}  Bb4 {[%clk 0:02:39]} 7. O-O-O {[%clk 0:02:29]}  dxe4 {[%clk 0:02:01]} 8. Nxe4 {[%clk 0:02:24]}  Qxd3 {[%clk 0:01:57]} 9. Nxf6+ {[%clk 0:02:20]}  gxf6 {[%clk 0:01:58]} 10. Bxd3 {[%clk 0:02:20]}  Ba5 {[%clk 0:01:55]} 11. Ne2 {[%clk 0:02:15]}  Be6 {[%clk 0:01:54]} 12. a3 {[%clk 0:02:11]}  O-O-O {[%clk 0:01:54]} 13. Be4 {[%clk 0:01:55]}  Bb6 {[%clk 0:01:40]} 14. Bg3 {[%clk 0:01:49]}  h5 {[%clk 0:01:28]} 15. h4 {[%clk 0:01:35]}  Ne5 {[%clk 0:01:27]} 16. Rxd8+ {[%clk 0:01:26]}  Rxd8 {[%clk 0:01:26]} 17. Nf4 {[%clk 0:01:21]}  Ng4 {[%clk 0:01:22]} 18. Rf1 {[%clk 0:00:37]}  Bc4 {[%clk 0:01:15]} 19. Bf5+ {[%clk 0:00:37]}  Kb8 {[%clk 0:01:13]} 20. Bd3 {[%clk 0:00:38]}  Bxd3 {[%clk 0:01:12]} 21. Nxd3 {[%clk 0:00:38]}  a6 {[%clk 0:01:00]} 22. Re1 {[%clk 0:00:38]}  Rd7 {[%clk 0:00:40]} 23. Re8+ {[%clk 0:00:38]}  Ka7 {[%clk 0:00:40]} 24. Rh8 {[%clk 0:00:39]}  f5 {[%clk 0:00:37]} 25. Rxh5 {[%clk 0:00:37]}  f4 {[%clk 0:00:37]} 26. Bxf4 {[%clk 0:00:36]}  Nxf2 {[%clk 0:00:35]} 27. Nxf2 {[%clk 0:00:35]}  Bxf2 {[%clk 0:00:36]} 28. b4 {[%clk 0:00:33]}  b6 {[%clk 0:00:31]} 29. Rh7 {[%clk 0:00:32]}  Kb7 {[%clk 0:00:31]} 30. h5 {[%clk 0:00:32]}  Bd4 {[%clk 0:00:27]} 31. h6 {[%clk 0:00:31]}  Bf6 {[%clk 0:00:25]} 32. g4 {[%clk 0:00:29]}  Rd4 {[%clk 0:00:20]} 33. Be3 {[%clk 0:00:22]}  Rxg4 {[%clk 0:00:18]} 34. Rxf7 {[%clk 0:00:21]}  Bc3 {[%clk 0:00:19]} 35. Kd1 {[%clk 0:00:20]}  Rh4 {[%clk 0:00:18]} 36. Ke2 {[%clk 0:00:20]}  Be5 {[%clk 0:00:15]} 37. h7 {[%clk 0:00:17]}  Rh2+ {[%clk 0:00:15]} 38. Kd3 {[%clk 0:00:17]}  a5 {[%clk 0:00:14]} 39. bxa5 {[%clk 0:00:16]}  bxa5 {[%clk 0:00:15]} 40. a4 {[%clk 0:00:17]}  Kc6 {[%clk 0:00:15]} 41. Ke4 {[%clk 0:00:16]}  Bc3 {[%clk 0:00:13]} 42. Rxc7+ {[%clk 0:00:14]} 1-0


[Site "https://www.chess.com"]

[Event "Titled Tuesday Blitz February 14 Early 2023"]
[White "Shimelkov, Vasiliy"]
[Black "Koridze, Lile"]
[WhiteFideId "13701630"]
[BlackFideId "13612514"]
[WhiteElo "2159"]
[BlackElo "2191"]
[Result "1-0"]
[Round "09"]
[TimeControl "180+2"]
[Date "2023.02.14"]
[WhiteClock "0:00:25"]
[BlackClock "0:00:06"]

1. d4 {[%clk 0:02:57]}  Nf6 {[%clk 0:02:54]} 2. c4 {[%clk 0:02:55]}  e6 {[%clk 0:02:50]} 3. g3 {[%clk 0:02:53]}  d5 {[%clk 0:02:49]} 4. Nf3 {[%clk 0:02:52]}  Bb4+ {[%clk 0:02:49]} 5. Bd2 {[%clk 0:02:51]}  Be7 {[%clk 0:02:49]} 6. Bg2 {[%clk 0:02:51]}  O-O {[%clk 0:02:49]} 7. O-O {[%clk 0:02:51]}  c6 {[%clk 0:02:50]} 8. Qc2 {[%clk 0:02:49]}  b6 {[%clk 0:02:50]} 9. Bf4 {[%clk 0:02:48]}  Bb7 {[%clk 0:02:49]} 10. Nbd2 {[%clk 0:02:29]}  Nbd7 {[%clk 0:02:48]} 11. e4 {[%clk 0:02:27]}  dxe4 {[%clk 0:02:48]} 12. Nxe4 {[%clk 0:02:25]}  c5 {[%clk 0:02:48]} 13. Nxf6+ {[%clk 0:02:22]}  Nxf6 {[%clk 0:02:47]} 14. Rad1 {[%clk 0:02:22]}  Qc8 {[%clk 0:02:45]} 15. Ne5 {[%clk 0:02:14]}  cxd4 {[%clk 0:02:43]} 16. Rxd4 {[%clk 0:02:12]}  Bxg2 {[%clk 0:02:43]} 17. Kxg2 {[%clk 0:02:11]}  Qb7+ {[%clk 0:02:42]} 18. Kg1 {[%clk 0:02:08]}  Rfd8 {[%clk 0:02:40]} 19. Rfd1 {[%clk 0:02:06]}  Rxd4 {[%clk 0:02:25]} 20. Rxd4 {[%clk 0:02:05]}  Rd8 {[%clk 0:02:25]} 21. Qd2 {[%clk 0:02:01]}  Rxd4 {[%clk 0:02:22]} 22. Qxd4 {[%clk 0:02:01]}  h6 {[%clk 0:02:22]} 23. h4 {[%clk 0:01:58]}  Ne4 {[%clk 0:02:13]} 24. a3 {[%clk 0:01:51]}  Bc5 {[%clk 0:02:12]} 25. Qd8+ {[%clk 0:01:51]}  Kh7 {[%clk 0:02:12]} 26. Nd3 {[%clk 0:01:44]}  Be7 {[%clk 0:01:55]} 27. Qd4 {[%clk 0:01:42]}  Bf6 {[%clk 0:01:47]} 28. Be5 {[%clk 0:01:37]}  Nd2 {[%clk 0:01:47]} 29. Ne1 {[%clk 0:01:31]}  Bxe5 {[%clk 0:01:36]} 30. Qxd2 {[%clk 0:01:31]}  f5 {[%clk 0:01:28]} 31. Nd3 {[%clk 0:01:25]}  Qe4 {[%clk 0:01:17]} 32. Nxe5 {[%clk 0:01:23]}  Qxe5 {[%clk 0:01:18]} 33. Qc2 {[%clk 0:01:18]}  Qe1+ {[%clk 0:01:16]} 34. Kg2 {[%clk 0:01:16]}  Qe5 {[%clk 0:01:13]} 35. b4 {[%clk 0:01:12]}  a5 {[%clk 0:01:01]} 36. c5 {[%clk 0:01:10]}  axb4 {[%clk 0:00:59]} 37. axb4 {[%clk 0:01:08]}  bxc5 {[%clk 0:00:59]} 38. bxc5 {[%clk 0:01:06]}  Qc7 {[%clk 0:00:59]} 39. c6 {[%clk 0:01:05]}  Kg6 {[%clk 0:00:59]} 40. Qc5 {[%clk 0:01:00]}  Kf6 {[%clk 0:00:59]} 41. f4 {[%clk 0:00:58]}  Kf7 {[%clk 0:00:55]} 42. h5 {[%clk 0:00:54]}  Ke8 {[%clk 0:00:43]} 43. Kf3 {[%clk 0:00:49]}  Qd8 {[%clk 0:00:28]} 44. Ke2 {[%clk 0:00:44]}  Qc7 {[%clk 0:00:23]} 45. Kd3 {[%clk 0:00:43]}  Kf7 {[%clk 0:00:15]} 46. Kc4 {[%clk 0:00:41]}  Ke8 {[%clk 0:00:14]} 47. Kb5 {[%clk 0:00:40]}  Kf7 {[%clk 0:00:13]} 48. Qb6 {[%clk 0:00:36]}  Qd6 {[%clk 0:00:13]} 49. Ka6 {[%clk 0:00:35]}  Qa3+ {[%clk 0:00:12]} 50. Kb7 {[%clk 0:00:35]}  Qe7+ {[%clk 0:00:12]} 51. Qc7 {[%clk 0:00:31]}  Qxc7+ {[%clk 0:00:05]} 52. Kxc7 {[%clk 0:00:31]}  e5 {[%clk 0:00:06]} 53. Kb7 {[%clk 0:00:27]}  e4 {[%clk 0:00:06]} 54. c7 {[%clk 0:00:25]} 1-0


[Site "https://www.chess.com"]

[Event "Titled Tuesday Blitz February 14 Early 2023"]
[White "Escalona Landi, Samid Eduardo"]
[Black "Dragomirescu, Angela"]
[WhiteFideId "3937437"]
[BlackFideId "1209914"]
[WhiteElo "2218"]
[BlackElo "2130"]
[Result "1-0"]
[Round "09"]
[TimeControl "180+2"]
[Date "2023.02.14"]
[WhiteClock "0:00:23"]
[BlackClock "0:00:11"]

1. e4 {[%clk 0:02:54]}  e5 {[%clk 0:03:00]} 2. Nf3 {[%clk 0:02:54]}  Nc6 {[%clk 0:03:00]} 3. Bc4 {[%clk 0:02:54]}  Bc5 {[%clk 0:03:00]} 4. b4 {[%clk 0:02:54]}  Bxb4 {[%clk 0:03:00]} 5. c3 {[%clk 0:02:55]}  Ba5 {[%clk 0:03:01]} 6. d4 {[%clk 0:02:54]}  exd4 {[%clk 0:03:02]} 7. O-O {[%clk 0:02:54]}  Nf6 {[%clk 0:03:02]} 8. cxd4 {[%clk 0:02:26]}  d5 {[%clk 0:02:30]} 9. exd5 {[%clk 0:02:23]}  Nxd5 {[%clk 0:02:31]} 10. Ba3 {[%clk 0:02:21]}  Be6 {[%clk 0:02:25]} 11. Bb5 {[%clk 0:02:21]}  Ne7 {[%clk 0:02:04]} 12. Bxe7 {[%clk 0:02:12]}  Kxe7 {[%clk 0:01:26]} 13. Qa4 {[%clk 0:02:12]}  Qd5 {[%clk 0:01:11]} 14. Nc3 {[%clk 0:02:07]}  Bxc3 {[%clk 0:01:07]} 15. Rac1 {[%clk 0:02:06]}  Ba5 {[%clk 0:00:54]} 16. Bc4 {[%clk 0:01:43]}  Qf5 {[%clk 0:00:19]} 17. Bxe6 {[%clk 0:01:43]}  fxe6 {[%clk 0:00:18]} 18. Rc5 {[%clk 0:01:26]}  Qe4 {[%clk 0:00:18]} 19. Qb5 {[%clk 0:01:11]}  Bb6 {[%clk 0:00:17]} 20. Re1 {[%clk 0:01:09]}  Qf4 {[%clk 0:00:15]} 21. Rf5 {[%clk 0:01:06]}  Qd6 {[%clk 0:00:15]} 22. Rd5 {[%clk 0:01:05]}  Qb4 {[%clk 0:00:14]} 23. Qe2 {[%clk 0:00:58]}  Nd8 {[%clk 0:00:12]} 24. Ng5 {[%clk 0:00:47]}  Ba5 {[%clk 0:00:12]} 25. Rc1 {[%clk 0:00:37]}  h6 {[%clk 0:00:12]} 26. Rb5 {[%clk 0:00:29]}  Qxb5 {[%clk 0:00:11]} 27. Qxb5 {[%clk 0:00:28]}  Bb6 {[%clk 0:00:12]} 28. Nf3 {[%clk 0:00:23]}  Nf7 {[%clk 0:00:12]} 29. Qb4+ {[%clk 0:00:23]}  Nd6 {[%clk 0:00:12]} 30. Ne5 {[%clk 0:00:23]}  Rhd8 {[%clk 0:00:10]} 31. Re1 {[%clk 0:00:23]}  a5 {[%clk 0:00:09]} 32. Qb3 {[%clk 0:00:24]}  Kf6 {[%clk 0:00:10]} 33. Ng4+ {[%clk 0:00:23]}  Kf7 {[%clk 0:00:10]} 34. Qxe6+ {[%clk 0:00:23]}  Kf8 {[%clk 0:00:11]} 35. Ne5 {[%clk 0:00:23]} 1-0


[Site "https://www.chess.com"]